[Event "ESP-ch Seniors 2017"]
[Site "Altea"]
[Date "2017.10.10"]
[Round "4"]
[White "Elissalt Cardenas, Hector"]
[Black "Gonzalez Custodio, Rafael"]
[Result "1/2-1/2"]
[ECO "A43"]
[WhiteElo "2324"]
[BlackElo "2105"]
[Annotator "NA"]
[PlyCount "27"]
[EventDate "2017.??.??"]
[EventType "swiss"]
[EventCountry "ESP"]
[SourceTitle "playchess.com"]
[Source "ChessBase"]
[SourceQuality "1"]
[TimeControl "5400+30"]

1. d4 Nf6 {[%emt 0:00:10]} 2. c4 {[%emt 0:08:08]} c5 {[%emt 0:00:06]} 3. d5 {[%emt 0:00:07]} d6 {[%emt 0:00:00]} 4. Nc3 g6 {[%emt 0:00:00]} 5. e4 {[%emt 0:01:15]} Bg7 6. Bd3 {[%emt 0:02:33]} O-O {[%emt 0:00:48]} 7. h3 {[%emt 0:02:05]} e6 {[%emt 0:04:14]} 8. Nge2 {[%emt 0:00:50]} exd5 {[%emt 0:01:25]} 9. cxd5 {[%emt 0:00:31]} Nbd7 {[%emt 0:01:08]} 10. O-O {[%emt 0:03:34]} Re8 11. Ng3 {[%emt 0:00:07]} a6 {[%emt 0:02:04]} 12. a4 {[%emt 0:11:31]} Rb8 {[%emt 0:05:10]} 13. f4 {[%emt 0:02:44]} h5 14. e5 1/2-1/2

[Event "ESP-ch Seniors 2017"]
[Site "Altea"]
[Date "2017.10.10"]
[Round "4"]
[White "Celaya Tapiz, Jose Maria"]
[Black "Pastor Alonso De Prado, Alberto"]
[Result "1/2-1/2"]
[ECO "C62"]
[WhiteElo "2196"]
[BlackElo "2131"]
[Annotator "NA"]
[PlyCount "95"]
[EventDate "2017.??.??"]
[EventType "swiss"]
[EventCountry "ESP"]
[SourceTitle "playchess.com"]
[Source "ChessBase"]
[SourceQuality "1"]
[TimeControl "5400+30"]

1. e4 {[%emt 0:00:00]} e5 {[%emt 0:00:32]} 2. Nf3 {[%emt 0:00:47]} Nc6 {[%emt 0:00:07]} 3. Bb5 {[%emt 0:00:42]} d6 {[%emt 0:00:54]} 4. d4 {[%emt 0:00:24]} Bd7 {[%emt 0:00:24]} 5. Be3 {[%emt 0:01:40] C62: Ruy Lopez: Steinitz Defence} (5. d5 Nb8 6. c4 Nf6 7. Nc3 Be7 8. Bxd7+ Nbxd7 9. Be3 g6 10. h3 Nh5 11. O-O O-O 12. Rc1 Ng7 13. b4 f5 {1-0 (47) Ivanchuk,V (2758)-Ehlvest,J (2613) Jurmala 2013}) 5... Nf6 {[%emt 0:04:48]} 6. Nbd2 {[%emt 0:00:50]} exd4 $146 {[%emt 0:04:03]} ({Predecessor:} 6... Na5 7. Qe2 c6 8. Bd3 Bg4 9. b4 d5 10. bxa5 dxe4 11. Nxe4 Nxe4 12. Bxe4 f5 13. Bxf5 Bxf5 14. Nxe5 {1-0 (35) Newey,R-Situ,F USA 1993}) 7. Nxd4 {[%emt 0:00:15]} Be7 {[%emt 0:01:16]} 8. Nxc6 {[%emt 0:01:00]} bxc6 {[%emt 0:00:28]} 9. Bd3 {[%emt 0:00:47]} Ng4 {[%emt 0:00:58]} 10. Bd4 {[%emt 0:03:50]} Bf6 {[%emt 0:00:22]} 11. c3 {[%emt 0:00:16]} c5 {[%emt 0:00:52]} 12. Bxf6 {[%emt 0:00:23]} Qxf6 {[%emt 0:00:12]} 13. O-O {[%emt 0:00:24]} O-O {[%emt 0:04:26]} 14. Be2 {[%emt 0:02:09]} Ne5 {[%emt 0:00:12]} 15. Nc4 {[%emt 0:03:55]} Rab8 {[%emt 0:02:41]} 16. Rb1 {[%emt 0:02:55]} Rfe8 {[%emt 0:01:09]} 17. Nxe5 {[%emt 0:02:46]} Qxe5 {[%emt 0:00:36]} 18. Bd3 {[%emt 0:00:10]} Bc6 {[%emt 0:09:54]} 19. f3 {[%emt 0:00:15]} Qe6 {[%emt 0:02:39]} 20. b3 {[%emt 0:02:23]} a5 {[%emt 0:02:31]} 21. Bc4 {[%emt 0:00:32]} Qe5 {[%emt 0:00:30]} 22. Qd2 {[%emt 0:00:18]} a4 {[%emt 0:06:04]} 23. Rfd1 {[%emt 0:03:24]} axb3 {[%emt 0:00:59]} 24. axb3 {[%emt 0:00:24]} g6 {[%emt 0:05:13]} 25. b4 {[%emt 0:08:59]} Bd7 {[%emt 0:13:07]} 26. Ra1 {[%emt 0:07:47]} cxb4 {[%emt 0:08:29]} 27. cxb4 {[%emt 0:00:18]} Ra8 {[%emt 0:00:07]} 28. Rxa8 {[%emt 0:02:12]} Rxa8 {[%emt 0:00:09]} 29. Qd5 {[%emt 0:00:22]} Qxd5 {[%emt 0:01:25]} 30. Bxd5 {[%emt 0:00:15]} Rb8 {[%emt 0:00:15]} 31. Rc1 {[%emt 0:03:19]} Rxb4 {[%emt 0:02:32]} 32. Rxc7 {[%emt 0:00:16]} Be6 {[%emt 0:00:03]} 33. Bxe6 {[%emt 0:04:35]} fxe6 {[%emt 0:00:13]} 34. Re7 {[%emt 0:00:16]} e5 {[%emt 0:00:36]} 35. Rd7 {[%emt 0:00:12]} Rd4 {[%emt 0:00:24]} 36. Kf2 {[%emt 0:00:26]} Rd2+ {[%emt 0:04:10]} 37. Kg3 {[%emt 0:00:03]} h6 {[%emt 0:00:19]} 38. Kh3 {[%emt 0:02:48]} Rd3 {[%emt 0:00:29]} 39. Kg4 {[%emt 0:01:06]} Rd2 {[%emt 0:00:07]} 40. g3 {[%emt 0:00:51]} Rxh2 {[%emt 0:01:36]} 41. Rxd6 {[%emt 0:00:02]} Kf7 {[%emt 0:00:09]} 42. f4 {[%emt 0:01:03]} exf4 {[%emt 0:01:54]} 43. Kxf4 {[%emt 0:03:23]} Rh5 {[%emt 0:00:43]} 44. Ra6 {[%emt 0:01:18]} Rc5 {[%emt 0:02:24]} 45. Ra7+ {[%emt 0:02:14]} Kf6 {[%emt 0:00:24]} 46. Ra6+ {[%emt 0:00:10]} Kf7 {[%emt 0:00:07]} 47. Ra7+ {[%emt 0:00:45]} Kf6 $11 {[%emt 0:00:08]} 48. Ra6+ {[%emt 0:00:05]} 1/2-1/2

[Event "ESP-ch Seniors 2017"]
[Site "Altea"]
[Date "2017.10.10"]
[Round "4"]
[White "Aranaz Portugues, Jose Carlos"]
[Black "Ladron De Guevara Galar, Fco J"]
[Result "1/2-1/2"]
[ECO "A45"]
[WhiteElo "2159"]
[BlackElo "2081"]
[Annotator "ChessBase"]
[PlyCount "100"]
[EventDate "2017.??.??"]
[EventType "swiss"]
[EventCountry "ESP"]
[SourceTitle "playchess.com"]
[Source "ChessBase"]
[SourceQuality "1"]
[TimeControl "5400+30"]

1. d4 {[%emt 0:00:00]} Nf6 {[%emt 0:00:58]} 2. Bg5 {[%emt 0:00:00]} d5 {[%emt 0:00:18]} 3. Bxf6 {[%emt 0:00:00]} exf6 {[%emt 0:01:00]} 4. e3 {[%emt 0:00:00]} f5 {[%emt 0:01:57]} 5. g3 {[%emt 0:00:09]} Nd7 {[%emt 0:02:53]} 6. Bg2 {[%emt 0:00:50]} Nf6 {[%emt 0:00:34]} 7. Ne2 {[%emt 0:00:09]} c6 {[%emt 0:02:05]} 8. Nd2 {[%emt 0:01:06]} Be6 {[%emt 0:04:26]} 9. c3 {[%emt 0:01:34]} Bd6 {[%emt 0:01:40]} 10. O-O {[%emt 0:00:42]} O-O {[%emt 0:03:23]} 11. Qc2 {[%emt 0:01:42]} Ne4 12. b3 {[%emt 0:03:26]} g6 {[%emt 0:08:32]} 13. Nf3 {[%emt 0:00:40]} Rc8 {[%emt 0:19:36]} 14. Qb2 {[%emt 0:02:33]} Re8 {[%emt 0:02:01]} 15. a4 {[%emt 0:02:20]} Bf8 {[%emt 0:03:49]} 16. b4 {[%emt 0:01:18]} Nd6 {[%emt 0:00:50]} 17. Nd2 {[%emt 0:03:34]} Bg7 {[%emt 0:01:05]} 18. Nf4 {[%emt 0:00:34]} a6 {[%emt 0:05:42]} 19. Nd3 {[%emt 0:00:57]} h5 {[%emt 0:01:06]} 20. h4 {[%emt 0:02:52]} Bf6 {[%emt 0:01:17]} 21. Nf4 {[%emt 0:01:04]} Kg7 {[%emt 0:02:00]} 22. Bf3 {[%emt 0:04:21]} Rh8 {[%emt 0:03:40]} 23. Kg2 {[%emt 0:00:07]} Ne4 {[%emt 0:01:14]} 24. Rh1 {[%emt 0:01:12]} Qd6 {[%emt 0:05:08]} 25. a5 {[%emt 0:05:11]} Qd7 {[%emt 0:02:57]} 26. Nb3 {[%emt 0:00:26]} Qe7 {[%emt 0:00:37]} 27. Nc5 {[%emt 0:00:36]} Rb8 {[%emt 0:00:56]} 28. Qc2 {[%emt 0:01:22]} Bc8 {[%emt 0:00:42]} 29. Qd3 {[%emt 0:02:28]} Nd6 {[%emt 0:00:42]} 30. Rac1 {[%emt 0:01:28]} Be6 {[%emt 0:00:59]} 31. Qd1 {[%emt 0:03:23]} Ne4 {[%emt 0:02:37]} 32. c4 {[%emt 0:08:26]} Nxc5 {[%emt 0:01:11]} 33. bxc5 {[%emt 0:00:25]} dxc4 {[%emt 0:00:27]} 34. Nxe6+ {[%emt 0:01:53]} fxe6 {[%emt 0:01:37]} 35. Rxc4 {[%emt 0:00:51]} Rhd8 {[%emt 0:00:41]} 36. Qb3 {[%emt 0:01:58]} e5 {[%emt 0:00:52]} 37. dxe5 {[%emt 0:08:17]} Bxe5 {[%emt 0:00:14]} 38. Rb1 {[%emt 0:01:19]} Bc7 {[%emt 0:02:24]} 39. Qb4 {[%emt 0:07:50]} Qe5 {[%emt 0:02:21]} 40. Rc2 {[%emt 0:02:30]} Rd3 {[%emt 0:01:27]} 41. Rcb2 {[%emt 0:00:23]} Rxe3 {[%emt 0:01:02]} 42. Qf4 {[%emt 0:03:51]} Qxf4 {[%emt 0:02:01]} 43. gxf4 {[%emt 0:00:03]} Re7 {[%emt 0:00:31]} 44. Rxb7 {[%emt 0:00:12]} Rxb7 {[%emt 0:00:33]} 45. Rxb7 {[%emt 0:00:03]} Bd8 {[%emt 0:01:34]} 46. Bxc6 {[%emt 0:00:54]} Rxb7 {[%emt 0:01:30]} 47. Bxb7 {[%emt 0:00:07]} Bxh4 {[%emt 0:00:59]} 48. Bxa6 {[%emt 0:01:24]} Bd8 {[%emt 0:00:07]} 49. Bb5 {[%emt 0:04:17]} Bxa5 {[%emt 0:00:10]} 50. Be8 {[%emt 0:00:04]} Bd8 1/2-1/2

[Event "ESP-ch Seniors 2017"]
[Site "Altea"]
[Date "2017.10.10"]
[Round "4"]
[White "Riquelme Valero, Manuel Damian"]
[Black "Garcia Fernandez, Carlos"]
[Result "1/2-1/2"]
[ECO "A43"]
[WhiteElo "2147"]
[BlackElo "2264"]
[Annotator "RC"]
[PlyCount "76"]
[EventDate "2017.??.??"]
[EventType "swiss"]
[EventCountry "ESP"]
[SourceTitle "playchess.com"]
[Source "ChessBase"]
[SourceQuality "1"]
[TimeControl "5400+30"]

1. d4 {[%emt 0:00:00]} c5 {[%emt 0:09:49]} 2. d5 {[%emt 0:00:26]} f5 {[%emt 0:00:34]} 3. e4 {[%emt 0:05:13]} fxe4 {[%emt 0:00:35]} 4. Nc3 {[%emt 0:00:06]} Nf6 {[%emt 0:02:50]} 5. Nh3 {[%emt 0:00:52]} g6 {[%emt 0:02:33]} 6. Bc4 {[%emt 0:06:23]} Bg7 {[%emt 0:03:14]} 7. Ng5 {[%emt 0:00:46]} O-O {[%emt 0:04:37]} 8. O-O {[%emt 0:05:28]} h6 {[%emt 0:06:58]} 9. Ngxe4 {[%emt 0:05:45]} Nxe4 {[%emt 0:00:48]} 10. Nxe4 {[%emt 0:00:18]} d6 {[%emt 0:00:21]} 11. c3 {[%emt 0:11:46]} Na6 {[%emt 0:04:31]} 12. Be3 {[%emt 0:03:12]} b6 {[%emt 0:00:25]} 13. Ng3 {[%emt 0:05:17]} Nc7 {[%emt 0:03:07]} 14. Bd3 {[%emt 0:08:13]} Qe8 {[%emt 0:01:04]} 15. c4 {[%emt 0:08:29]} b5 {[%emt 0:01:08]} 16. Qd2 {[%emt 0:09:35]} bxc4 {[%emt 0:00:46]} 17. Bxc4 {[%emt 0:00:29]} Kh7 {[%emt 0:03:26]} 18. Rad1 {[%emt 0:01:07]} Rb8 {[%emt 0:00:46]} 19. b3 {[%emt 0:02:19]} Ba6 {[%emt 0:05:02]} 20. Qe2 {[%emt 0:06:39]} Bxc4 {[%emt 0:01:14]} 21. bxc4 {[%emt 0:00:10]} Qa4 {[%emt 0:04:26]} 22. h4 {[%emt 0:05:38]} Rb2 {[%emt 0:03:23]} 23. Qg4 {[%emt 0:02:10]} h5 {[%emt 0:00:36]} 24. Qe4 {[%emt 0:00:13]} Qd7 {[%emt 0:01:53]} 25. Bg5 {[%emt 0:03:49]} Bf6 {[%emt 0:02:15]} 26. Bxf6 {[%emt 0:02:21]} exf6 {[%emt 0:01:07]} 27. Rb1 {[%emt 0:00:39]} f5 {[%emt 0:00:46]} 28. Qd3 {[%emt 0:00:28]} Rfb8 {[%emt 0:00:38]} 29. Rxb2 {[%emt 0:00:36]} Rxb2 {[%emt 0:00:04]} 30. Re1 {[%emt 0:02:23]} Rb8 {[%emt 0:00:46]} 31. Qc3 {[%emt 0:00:21]} Re8 {[%emt 0:01:54]} 32. Nf1 {[%emt 0:01:24]} Re7 {[%emt 0:00:41]} 33. Rb1 {[%emt 0:01:07]} Ne8 {[%emt 0:00:45]} 34. Rb8 {[%emt 0:00:36]} Ng7 {[%emt 0:00:32]} 35. Qa5 {[%emt 0:00:38]} Re8 {[%emt 0:01:24]} 36. Rxe8 {[%emt 0:00:37]} Nxe8 {[%emt 0:00:06]} 37. Nh2 {[%emt 0:00:21]} Nf6 {[%emt 0:01:31]} 38. Nf3 {[%emt 0:00:16]} Ne4 {[%emt 0:00:06]} 1/2-1/2

[Event "ESP-ch Seniors 2017"]
[Site "Altea"]
[Date "2017.10.10"]
[Round "4"]
[White "Serra Olives, Tomas"]
[Black "Vinal Gutierrez, Pedro"]
[Result "0-1"]
[ECO "C11"]
[WhiteElo "2146"]
[BlackElo "2041"]
[Annotator "ChessBase"]
[PlyCount "110"]
[EventDate "2017.??.??"]
[EventType "swiss"]
[EventCountry "ESP"]
[SourceTitle "playchess.com"]
[Source "ChessBase"]
[SourceQuality "1"]
[TimeControl "5400+30"]

1. e4 e6 2. d4 d5 3. Nc3 {[%emt 0:00:35]} Nf6 {[%emt 0:01:00]} 4. e5 {[%emt 0:00:00]} Nfd7 {[%emt 0:00:00]} 5. f4 {[%emt 0:00:00]} c5 {[%emt 0:00:00]} 6. Nf3 {[%emt 0:00:00]} Nc6 {[%emt 0:00:00]} 7. Be3 {[%emt 0:00:00]} Qb6 {[%emt 0:00:00]} 8. Na4 {[%emt 0:04:06]} Qc7 {[%emt 0:00:00]} 9. c3 {[%emt 0:09:28]} c4 {[%emt 0:05:25]} 10. b4 {[%emt 0:03:47]} g6 {[%emt 0:04:13]} 11. Be2 {[%emt 0:01:53]} Ne7 {[%emt 0:01:08]} 12. O-O {[%emt 0:03:34]} Nf5 {[%emt 0:00:17]} 13. Bf2 {[%emt 0:00:23]} Nb6 {[%emt 0:01:42]} 14. Nc5 {[%emt 0:05:45]} Bd7 {[%emt 0:02:06]} 15. a4 {[%emt 0:09:39]} a5 {[%emt 0:04:19]} 16. b5 {[%emt 0:00:38]} Nc8 {[%emt 0:00:36]} 17. g4 {[%emt 0:02:33]} Ng7 {[%emt 0:00:44]} 18. Qc2 {[%emt 0:09:46]} b6 {[%emt 0:00:43]} 19. Na6 {[%emt 0:00:33]} Qb7 {[%emt 0:01:49]} 20. Bh4 {[%emt 0:02:26]} Na7 {[%emt 0:01:26]} 21. Rab1 {[%emt 0:03:48]} Nc8 {[%emt 0:05:59]} 22. Bf6 {[%emt 0:00:32]} Ne7 {[%emt 0:00:16]} 23. Nd2 {[%emt 0:04:31]} h5 {[%emt 0:05:08]} 24. gxh5 {[%emt 0:12:45]} gxh5 {[%emt 0:02:06]} 25. Rbe1 {[%emt 0:01:50]} Nef5 {[%emt 0:04:06]} 26. Bf3 {[%emt 0:02:15]} Rh6 {[%emt 0:05:33]} 27. Kf2 {[%emt 0:03:50]} Be7 {[%emt 0:02:21]} 28. Bxe7 {[%emt 0:02:40]} Kxe7 {[%emt 0:01:05]} 29. Qa2 {[%emt 0:01:14]} Qc8 {[%emt 0:05:00]} 30. Rg1 {[%emt 0:05:46]} Rg6 {[%emt 0:02:45]} 31. Qa3+ {[%emt 0:05:06]} Ke8 {[%emt 0:00:14]} 32. Rxg6 {[%emt 0:00:24]} fxg6 {[%emt 0:00:12]} 33. Rg1 {[%emt 0:02:43]} Kf7 {[%emt 0:00:25]} 34. Nf1 {[%emt 0:00:39]} Qd8 {[%emt 0:00:26]} 35. Rg5 {[%emt 0:00:42]} Rc8 {[%emt 0:02:27]} 36. Ne3 {[%emt 0:00:25]} Be8 {[%emt 0:03:05]} 37. Qc1 {[%emt 0:00:58]} Nxe3 {[%emt 0:01:05]} 38. Kxe3 {[%emt 0:00:02]} Qe7 {[%emt 0:00:31]} 39. Kf2 {[%emt 0:00:31]} Kg8 {[%emt 0:00:48]} 40. f5 {[%emt 0:02:10]} exf5 {[%emt 0:02:20]} 41. Bxd5+ {[%emt 0:00:23]} Kh7 {[%emt 0:00:26]} 42. h4 {[%emt 0:00:36]} Qd7 {[%emt 0:01:15]} 43. Bc6 {[%emt 0:00:46]} Rxc6 {[%emt 0:00:07]} 44. bxc6 {[%emt 0:00:01]} Qxc6 {[%emt 0:00:14]} 45. Qa3 {[%emt 0:00:26]} Qe4 {[%emt 0:00:24]} 46. Nc7 {[%emt 0:00:38]} Qxh4+ {[%emt 0:00:23]} 47. Ke2 {[%emt 0:00:28]} Qxg5 {[%emt 0:00:32]} 48. Nxe8 {[%emt 0:00:12]} Qg4+ {[%emt 0:00:40]} 49. Ke1 {[%emt 0:00:13]} Qg3+ {[%emt 0:00:19]} 50. Kf1 {[%emt 0:00:21]} Qf4+ {[%emt 0:00:10]} 51. Kg1 {[%emt 0:00:15]} Qe3+ {[%emt 0:00:06]} 52. Kg2 {[%emt 0:00:11]} Nxe8 {[%emt 0:00:17]} 53. Qf8 {[%emt 0:01:46]} Ng7 {[%emt 0:00:13]} 54. Qd6 {[%emt 0:00:23]} f4 {[%emt 0:00:39]} 55. Qf6 {[%emt 0:00:42]} Qe2+ {[%emt 0:00:15]} 0-1

[Event "ESP-ch Seniors 2017"]
[Site "Altea"]
[Date "2017.10.10"]
[Round "4"]
[White "Dominguez Rueda, Juan"]
[Black "Suba, Mihai"]
[Result "1/2-1/2"]
[ECO "B03"]
[WhiteElo "2135"]
[BlackElo "2315"]
[Annotator "ChessBase"]
[PlyCount "45"]
[EventDate "2017.??.??"]
[EventType "swiss"]
[EventCountry "ESP"]
[SourceTitle "playchess.com"]
[Source "ChessBase"]
[SourceQuality "1"]
[TimeControl "5400+30"]

1. e4 {[%emt 0:00:00]} Nf6 {[%emt 0:00:11]} 2. e5 {[%emt 0:03:11]} Nd5 {[%emt 0:00:06]} 3. c4 {[%emt 0:00:46]} Nb6 {[%emt 0:00:07]} 4. d4 {[%emt 0:00:26]} d6 {[%emt 0:00:03]} 5. exd6 {[%emt 0:00:12]} exd6 {[%emt 0:01:10]} 6. Nf3 {[%emt 0:04:24]} Be7 {[%emt 0:00:32]} 7. Be3 {[%emt 0:02:30]} Bg4 {[%emt 0:07:08]} 8. Be2 {[%emt 0:02:32]} O-O {[%emt 0:02:32]} 9. Nbd2 {[%emt 0:01:27]} Re8 {[%emt 0:03:54]} 10. O-O {[%emt 0:06:44]} Bf6 {[%emt 0:04:29]} 11. Re1 {[%emt 0:12:45]} Nc6 {[%emt 0:01:14]} 12. Rc1 {[%emt 0:02:57]} a5 {[%emt 0:09:31]} 13. h3 {[%emt 0:03:04]} Bxf3 {[%emt 0:00:28]} 14. Nxf3 {[%emt 0:03:22]} Qd7 {[%emt 0:11:45]} 15. Qd2 {[%emt 0:09:16]} Ne7 {[%emt 0:09:19]} 16. Bg5 {[%emt 0:09:06]} Bxg5 {[%emt 0:00:44]} 17. Qxg5 {[%emt 0:00:12]} h6 {[%emt 0:03:18]} 18. Qd2 {[%emt 0:00:53]} Qf5 {[%emt 0:03:33]} 19. Bd3 {[%emt 0:01:25]} Qf6 {[%emt 0:00:14]} 20. Re4 {[%emt 0:04:45]} Nc6 {[%emt 0:04:44]} 21. Rf4 {[%emt 0:03:46]} Qd8 {[%emt 0:01:30]} 22. Rg4 {[%emt 0:00:13]} Qf6 {[%emt 0:00:56]} 23. Rf4 {[%emt 0:00:13]} 1/2-1/2

[Event "ESP-ch Seniors 2017"]
[Site "Altea"]
[Date "2017.10.10"]
[Round "4"]
[White "Bautista Sanchez, Joan"]
[Black "Lopez Colon, Francisco"]
[Result "1-0"]
[ECO "A37"]
[WhiteElo "2123"]
[BlackElo "1938"]
[Annotator "NA"]
[PlyCount "68"]
[EventDate "2017.??.??"]
[EventType "swiss"]
[EventCountry "ESP"]
[SourceTitle "playchess.com"]
[Source "ChessBase"]
[SourceQuality "1"]
[TimeControl "5400+30"]

1. Nf3 {[%emt 0:00:03]} c5 {[%emt 0:00:00]} 2. c4 {[%emt 0:00:24]} Nc6 {[%emt 0:00:07]} 3. Nc3 {[%emt 0:00:35]} g6 {[%emt 0:01:55]} 4. g3 {[%emt 0:00:27]} Bg7 {[%emt 0:00:17]} 5. Bg2 {[%emt 0:00:11]} e5 {[%emt 0:05:10]} 6. d3 {[%emt 0:02:07]} d6 {[%emt 0:01:26]} 7. Nd5 {[%emt 0:02:35] A37: Symmetrical English vs ...g6: 4 Bg2 Bg7 5 Nf3} (7. Nd2 Nge7 8. Nf1 Rb8 9. Ne3 a6 10. Ned5 Nxd5 11. Nxd5 {½-½ (11) Hera,I (2619)-Lenic,L (2640) Hungary 2017}) 7... h6 {[%emt 0:02:23]} 8. O-O {[%emt 0:09:30]} Nge7 {[%emt 0:01:12]} 9. Nd2 {[%emt 0:03:53]} O-O {[%emt 0:01:58]} 10. a3 {[%emt 0:06:16]} Nxd5 {[%emt 0:09:05]} 11. cxd5 {[%emt 0:01:51]} Ne7 {[%emt 0:00:48]} 12. Rb1 {[%emt 0:00:45]} a5 $146 {[%emt 0:06:37]} ({Predecessor:} 12... f5) 13. a4 {[%emt 0:00:42]} Rb8 {[%emt 0:01:46]} 14. Nc4 {[%emt 0:00:35]} b5 {[%emt 0:00:32]} 15. axb5 {[%emt 0:00:21]} Rxb5 {[%emt 0:00:02]} 16. Bd2 {[%emt 0:00:45]} Qc7 {[%emt 0:24:13]} 17. Qa4 {[%emt 0:01:57]} Bd7 {[%emt 0:00:40]} 18. Bxa5 {[%emt 0:11:43]} Qa7 {[%emt 0:01:12]} 19. Ra1 {[%emt 0:02:54]} Rxb2 $2 {[%emt 0:07:13] [#]} (19... Ra8 $16 {might work better.} 20. e4 Nc8) 20. Qd1 $1 {[%emt 0:01:00]} Qb8 {[%emt 0:02:20]} 21. Nxb2 {[%emt 0:03:20]} Qxb2 {[%emt 0:00:03]} 22. Rb1 {[%emt 0:04:12]} Qa2 {[%emt 0:00:46]} 23. Qd2 {[%emt 0:01:04]} Qxd2 {[%emt 0:05:24]} 24. Bxd2 {[%emt 0:00:15]} Bg4 {[%emt 0:00:12]} 25. Rfe1 {[%emt 0:00:33]} Ra8 {[%emt 0:02:08]} 26. h3 {[%emt 0:03:54]} Ra2 {[%emt 0:02:33]} 27. Bxh6 {[%emt 0:03:20]} (27. hxg4 $142 Rxd2 28. Rb8+ Kh7 29. Rd8) 27... Bxe2 {[%emt 0:00:39]} 28. Bxg7 {[%emt 0:01:19]} Kxg7 {[%emt 0:00:18]} 29. Rb7 {[%emt 0:04:58]} Nf5 {[%emt 0:00:29]} 30. Bf1 {[%emt 0:00:48]} Bf3 {[%emt 0:01:06]} 31. Bg2 {[%emt 0:01:32]} Nd4 {[%emt 0:00:48]} 32. Rb6 {[%emt 0:03:55]} Ne2+ {[%emt 0:00:28]} 33. Kh2 {[%emt 0:01:46]} Bxg2 {[%emt 0:00:12]} 34. Kxg2 {[%emt 0:00:44]} Nd4 $18 1-0

[Event "ESP-ch Seniors 2017"]
[Site "Altea"]
[Date "2017.10.10"]
[Round "4"]
[White "Lloret Ramis, Juan Jose"]
[Black "Sabater Sanchez, Asensio"]
[Result "1/2-1/2"]
[ECO "A13"]
[WhiteElo "2120"]
[BlackElo "2149"]
[Annotator "ChessBase"]
[PlyCount "31"]
[EventDate "2017.??.??"]
[EventType "swiss"]
[EventCountry "ESP"]
[SourceTitle "playchess.com"]
[Source "ChessBase"]
[SourceQuality "1"]
[TimeControl "5400+30"]

1. c4 {[%emt 0:00:00]} e6 {[%emt 0:00:15]} 2. Nc3 {[%emt 0:00:00]} d5 {[%emt 0:00:18]} 3. d4 {[%emt 0:00:08]} Bb4 {[%emt 0:00:45]} 4. Qa4+ {[%emt 0:04:15]} Nc6 {[%emt 0:00:08]} 5. e3 {[%emt 0:00:29]} Nf6 {[%emt 0:02:00]} 6. Bd2 {[%emt 0:02:15]} O-O {[%emt 0:01:25]} 7. Nf3 {[%emt 0:02:55]} a6 {[%emt 0:03:52]} 8. Qc2 {[%emt 0:03:06]} Re8 {[%emt 0:04:18]} 9. a3 {[%emt 0:08:03]} Bd6 {[%emt 0:04:20]} 10. h3 {[%emt 0:17:00]} dxc4 {[%emt 0:05:47]} 11. Bxc4 {[%emt 0:01:30]} b5 {[%emt 0:01:30]} 12. Bd3 {[%emt 0:14:58]} Bb7 {[%emt 0:00:27]} 13. Ne4 {[%emt 0:02:30]} h6 {[%emt 0:05:10]} 14. Nxf6+ {[%emt 0:14:30]} Qxf6 {[%emt 0:02:03]} 15. Be4 {[%emt 0:01:11]} Nd8 {[%emt 0:01:29]} 16. Bxb7 {[%emt 0:07:05]} 1/2-1/2

[Event "ESP-ch Seniors 2017"]
[Site "Altea"]
[Date "2017.10.10"]
[Round "4"]
[White "Carbonell Bofill, Carlos Eloy"]
[Black "Roche Simon, Manuel Angel"]
[Result "0-1"]
[ECO "D02"]
[WhiteElo "2050"]
[BlackElo "2216"]
[Annotator "ChessBase"]
[PlyCount "106"]
[EventDate "2017.??.??"]
[EventType "swiss"]
[EventCountry "ESP"]
[SourceTitle "playchess.com"]
[Source "ChessBase"]
[SourceQuality "1"]
[TimeControl "5400+30"]

1. d4 {[%emt 0:00:49]} d5 {[%emt 0:00:12]} 2. Nf3 {[%emt 0:00:08]} c5 {[%emt 0:00:21]} 3. e3 {[%emt 0:00:19]} Nf6 {[%emt 0:01:11]} 4. a3 {[%emt 0:00:25]} e6 {[%emt 0:03:18]} 5. b3 {[%emt 0:00:02]} Nc6 {[%emt 0:00:19]} 6. Bd3 {[%emt 0:00:13]} Bd6 {[%emt 0:01:44]} 7. Bb2 {[%emt 0:00:10]} O-O {[%emt 0:08:16]} 8. O-O {[%emt 0:00:07]} b6 {[%emt 0:02:15]} 9. Ne5 {[%emt 0:01:28]} Bb7 {[%emt 0:01:09]} 10. Nd2 {[%emt 0:00:12]} cxd4 {[%emt 0:03:13]} 11. exd4 {[%emt 0:01:00]} Qe7 {[%emt 0:09:29]} 12. Re1 {[%emt 0:01:14]} Nd7 {[%emt 0:01:55]} 13. Re3 {[%emt 0:03:50]} f5 {[%emt 0:02:34]} 14. Nxc6 {[%emt 0:00:03]} Bxc6 {[%emt 0:00:12]} 15. Qe2 {[%emt 0:00:01]} Rae8 {[%emt 0:02:32]} 16. Re1 {[%emt 0:00:12]} Rf6 {[%emt 0:00:52]} 17. Bxf5 {[%emt 0:00:12]} Rxf5 {[%emt 0:00:35]} 18. Rxe6 {[%emt 0:00:03]} Qxe6 {[%emt 0:00:57]} 19. Qxe6+ {[%emt 0:00:04]} Rxe6 {[%emt 0:00:14]} 20. Rxe6 {[%emt 0:00:02]} Rf6 {[%emt 0:00:52]} 21. Re8+ {[%emt 0:00:34]} Nf8 {[%emt 0:01:21]} 22. Rd8 {[%emt 0:01:25]} Bc7 {[%emt 0:12:46]} 23. Rc8 {[%emt 0:00:09]} Rf7 {[%emt 0:01:56]} 24. a4 {[%emt 0:00:36]} Bb7 {[%emt 0:02:02]} 25. Re8 {[%emt 0:00:14]} Bd6 {[%emt 0:01:14]} 26. g3 {[%emt 0:00:30]} Re7 {[%emt 0:01:10]} 27. Rxe7 {[%emt 0:00:43]} Bxe7 {[%emt 0:00:06]} 28. f4 {[%emt 0:00:06]} Kf7 {[%emt 0:02:31]} 29. Kf2 {[%emt 0:00:06]} Ke6 {[%emt 0:00:07]} 30. g4 {[%emt 0:00:40]} g6 {[%emt 0:00:05]} 31. Ke3 {[%emt 0:00:30]} Nd7 {[%emt 0:01:22]} 32. h3 {[%emt 0:01:28]} Ba6 {[%emt 0:01:38]} 33. c4 {[%emt 0:00:46]} Bb4 {[%emt 0:01:14]} 34. cxd5+ {[%emt 0:00:04]} Kxd5 {[%emt 0:00:09]} 35. Ne4 {[%emt 0:00:03]} Be7 {[%emt 0:04:09]} 36. g5 {[%emt 0:04:56]} Bb4 {[%emt 0:04:54]} 37. h4 {[%emt 0:08:08]} Ke6 {[%emt 0:07:42]} 38. Bc3 {[%emt 0:00:02]} Bxc3 {[%emt 0:02:11]} 39. Nxc3 {[%emt 0:00:02]} Bb7 {[%emt 0:00:23]} 40. b4 {[%emt 0:00:16]} a6 {[%emt 0:04:37]} 41. Ne4 Bc6 42. a5 {[%emt 0:11:19]} bxa5 {[%emt 0:01:28]} 43. bxa5 {[%emt 0:00:39]} Bxe4 44. Kxe4 {[%emt 0:00:02]} Nb8 {[%emt 0:07:36]} 45. d5+ {[%emt 0:00:03]} Kd6 {[%emt 0:00:13]} 46. f5 {[%emt 0:00:15]} Nd7 {[%emt 0:00:31]} 47. fxg6 {[%emt 0:08:24]} hxg6 {[%emt 0:00:09]} 48. Kd4 {[%emt 0:00:30]} Ne5 {[%emt 0:01:05]} 49. Ke4 {[%emt 0:00:03]} Nc4 {[%emt 0:01:18]} 50. h5 {[%emt 0:00:14]} gxh5 {[%emt 0:00:17]} 51. g6 {[%emt 0:00:10]} Ke7 {[%emt 0:00:10]} 52. Kf5 {[%emt 0:07:38]} h4 {[%emt 0:00:18]} 53. Kg4 {[%emt 0:01:33]} Kf6 {[%emt 0:00:06]} 0-1